Cogmind - Beta 9.6 @@@ ROGUE MODE // 2020.09.07 @ 09:31:38 Player: Calanor Result: Destroyed by as-45940 with Assembled Rifle Performance ------------- Evolutions (0) 0 Regions Visited (2) 400 Robots Destroyed (67) 335 Value Destroyed (523) 523 Prototype IDs (5) 100 Alien Tech Used (0) 0 Bonus (0) 0 TOTAL SCORE: 1358 Bonus ------- None Cogmind --------- Core Integrity 0/250 Matter 252/300 Energy 250/250 System Corruption 2% Temperature Cool (32) Movement Rolling (100) Location -10/Mines Parts ------- > --- POWER (1) -------- Ion Engine > --- PROPULSION (2) --- Compact Wheel Compact Wheel > --- UTILITY (2) ------ Large Storage Unit Hacking Suite > --- WEAPON (2) ------- Autogun Autogun > --- INVENTORY (10) --- Light Ion Engine High-capacity Storage Unit Large Battery (300) Structural Scanner Improved Signal Interpreter Tractor Beam Beam Cannon Grenade Launcher Rocket Launcher Mining Laser Peak State ------------ > --- POWER ------------ Ion Engine > --- PROPULSION ------- Wheel Compact Wheel > --- UTILITY ---------- Large Storage Unit Hacking Suite > --- WEAPON ----------- Autogun Autogun > --- INVENTORY -------- Ion Engine Light Ion Engine High-capacity Storage Unit Large Battery Structural Scanner Improved Signal Interpreter Tractor Beam Light Cannon Mining Laser [Rating: 12] Favorites ----------- Power Ion Engine Engine Ion Engine Propulsion Compact Wheel Wheel Compact Wheel Utility Hacking Suite Device Tractor Beam Storage Large Storage Unit Hackware Hacking Suite Weapon Autogun Ballistic Gun Autogun Special Weapon Mining Laser Slashing Weapon Mining Claw Build | -11 -10 -10 ------- Run | Scr Mat Min Slots Evolved . | . . . Power . | . . . Propulsion . | . . . Utility . | . . . Weapon . | . . . Parts Attached 25 | 8 15 2 Power 2 | 1 1 . Engine 2 | 1 1 . Core . | . . . Reactor . | . . . Propulsion 7 | 3 2 2 Treads . | . . . Leg . | . . . Wheel 7 | 3 2 2 Hover . | . . . Flight . | . . . Utility 4 | 2 2 . Device 1 | 1 . . Storage 2 | 1 1 . Processor . | . . . Hackware 1 | . 1 . Protection . | . . . Artifact . | . . . Weapon 12 | 2 10 . Energy Gun . | . . . Energy Cannon . | . . . Ballistic Gun 9 | 2 7 . Ballistic Cannon . | . . . Launcher . | . . . Special Weapon 2 | . 2 . Impact Weapon . | . . . Slashing Weapon 1 | . 1 . Piercing Weapon . | . . . Special Melee Weapon . | . . . Unidentified Prototypes . | . . . Parts Lost 5 | . 5 . Power . | . . . Propulsion 2 | . 2 . Utility 1 | . 1 . Weapon 2 | . 2 . Highest Loss Streak 4 | . 4 . Average Slot Usage (%) 98 | . 97 100 Engine 14 | . 14 14 Wheel 27 | . 27 28 Device 1 | . 2 . Storage 14 | . 14 14 Hackware 11 | . 10 14 Ballistic Gun 26 | . 26 28 Naked Turns . | . . . Heaviest Build 27 | 14 27 27 Greatest Support 32 | 32 32 32 Greatest Overweight (x) 1 | . 1 1 Average Overweight (x) . | . . . Largest Inventory Capacity 10 | 6 10 10 Average Capacity 8 | 5 8 10 Most Carried 10 | 4 10 10 Average Carried 7 | 2 7 9 Final Capacity 10 | 6 10 10 Final Carried 10 | 4 10 10 Class Distribution -------------------- 100% | Mutant Dominant Class ---------------- Mutant | -10/Materials Mutant | -10/Mines Resources | -11 -10 -10 ----------- Run | Scr Mat Min Matter Collected 1635 | 406 993 236 Remotely 409 | 191 218 . Salvage Created 1647 | 173 1046 428 Parts 141 | 12 92 37 Haulers Intercepted 2 | . 2 . Recyclers Shooed 4 | . 4 . Parts Field Recycled . | . . . Retrieved Matter . | . . . Parts Self-Destructed . | . . . Prevented . | . . . Kills | -11 -10 -10 ------- Run | Scr Mat Min Combat Hostiles Destroyed 19 | . 15 4 Guns 19 | . 15 4 Classes Destroyed 10 | 3 6 1 Worker 16 | 2 9 5 Builder 11 | . 8 3 Tunneler 8 | 4 2 2 Hauler 2 | . 2 . Recycler 6 | 1 3 2 Operator 3 | . 3 . Watcher 2 | . 2 . Swarmer 14 | . 11 3 Grunt 4 | . 4 . Assembled 1 | . . 1 Best Kill Streak 6 | 5 6 4 Combat Bots Only 3 | . 3 2 Max Kills in Single Turn 2 | 1 2 2 Gunslinging 1 | . 1 . Exploded . | . . . Melee . | . . . Uniques/NPCs Destroyed . | . . . Combat | -11 -10 -10 -------- Run | Scr Mat Min Damage Taken 944 | . 830 114 Core 253 | . 223 30 Absorbed by Shields . | . . . Core Remaining (%) 100 | 100 . . Volleys Fired 188 | 21 134 33 Largest 2 | 2 2 2 Hottest 100 | 40 100 46 Shots Fired 356 | 42 248 66 Gun 343 | 42 235 66 Cannon . | . . . Launcher . | . . . Special 13 | . 13 . Kinetic 343 | 42 235 66 Thermal 13 | . 13 . Explosive . | . . . Electromagnetic . | . . . Robot Hit Streak 13 | 5 13 7 Robot Miss Streak 8 | 2 8 6 Penetration Max . | . . . Secondary Targets 2 | . 2 . Max Gunslinging Chain 1 | . 1 . Shots Hit Robots 163 | 26 110 27 Core Hits 77 | 8 50 19 Critical Hits 1 | . 1 . Critical Kills 1 | . 1 . Critical Parts Destroyed . | . . . Melee Attacks 11 | . 11 . Impact . | . . . Slashing 11 | . 11 . Piercing . | . . . Sneak Attacks . | . . . Combat Hostiles . | . . . Follow-up Attacks . | . . . Damage Inflicted 2497 | 350 1766 381 Guns 2473 | 350 1742 381 Cannons . | . . . Explosions . | . . . Melee . | . . . Ramming . | . . . Kinetic 2473 | 350 1742 381 Thermal 24 | . 24 . Explosive . | . . . Electromagnetic . | . . . Impact . | . . . Slashing . | . . . Piercing . | . . . Highest Corruption 2 | . 2 2 Average Corruption 2 | . 2 2 Corruption Purged . | . . . Effects 26 | . 22 4 Message Errors 7 | . 6 1 Heat Flow Errors 6 | . 5 1 Energy Discharges 4 | . 4 . Data Loss (minor) 3 | . 3 . Targeting Errors 6 | . 4 2 Overload Shots . | . . . Overflow Damage . | . . . Projectiles . | . . . Explosions . | . . . Melee . | . . . Knockbacks . | . . . Impact . | . . . Kinetic . | . . . Secondary . | . . . Self-Inflicted Damage . | . . . Shots . | . . . Rammed . | . . . Targets Rammed . | . . . Kicked . | . . . Crushed . | . . . Highest Temperature 299 | 6 299 159 Average Temperature 34 | 6 39 16 Received Heat Transfer 148 | . 108 40 Siege Activations . | . . . Robots Corrupted . | . . . Combat Hostiles . | . . . Parts Fried . | . . . Impact Corruptions . | . . . Robots Melted . | . . . Combat Hostiles . | . . . Parts Melted . | . . . Heat Transferred 50 | . 50 . Parts Sabotaged . | . . . Parts Stolen . | . . . Parts Stripped . | . . . Power Chain Reactions . | . . . Missiles Intercepted . | . . . Alert | -11 -10 -10 ------- Run | Scr Mat Min Peak Influence 253 | 35 253 146 Average Influence 90 | 17 104 63 Maximum Alert Level 1 | . 1 . Low Security (%) 90 | 100 86 100 Level 1 9 | . 13 . Level 2 . | . . . Level 3 . | . . . Level 4 . | . . . Level 5 . | . . . High Security . | . . . Max Security . | . . . Squads Dispatched 3 | . 3 . Investigation . | . . . Extermination . | . . . Reinforcement 3 | . 3 . Assault . | . . . Garrison . | . . . Intercept . | . . . Construction Impeded . | . . . Haulers Reinforced . | . . . Stealth | -11 -10 -10 --------- Run | Scr Mat Min Distress Signals . | . . . Communications Jammed . | . . . Distress Signals . | . . . Times Spotted 44 | . 31 13 Peak Tracking Total 6 | . 5 6 Tactical Retreats 1 | . . 1 Traps | -11 -10 -10 ------- Run | Scr Mat Min Traps Triggered 1 | . 1 . Indirectly . | . . . Trap Hack Attempts . | . . . Triggered . | . . . Disarmed 7 | . 7 . Reprogrammed . | . . . Reused . | . . . Traps Extracted . | . . . Installed . | . . . Triggered . | . . . Machines | -11 -10 -10 ---------- Run | Scr Mat Min Machines Disabled 1 | . 1 . Max in Single Turn 1 | . 1 . Machines Sabotaged . | . . . Garrisons Compromised . | . . . Overloaded Fab Kills . | . . . Fab Network Shutdowns . | . . . Hacking | -11 -10 -10 --------- Run | Scr Mat Min Machines Accessed 6 | . 6 . Terminals 4 | . 4 . Fabricators . | . . . Repair Stations 1 | . 1 . Recycling Units 1 | . 1 . Scanalyzers . | . . . Garrison Access . | . . . Total Hacks 22 | . 22 . Successful 17 | . 17 . Failed 5 | . 5 . Catastrophic . | . . . Database Lockouts . | . . . Manual . | . . . Terminals 15 | . 15 . Fabricators . | . . . Repair Stations 2 | . 2 . Recycling Units 5 | . 5 . Scanalyzers . | . . . Garrison Access . | . . . Terminal Hacks 11 | . 11 . Prototype ID Bank 3 | . 3 . Locate Traps 4 | . 4 . Disarm Traps 3 | . 3 . Maintenance Status 1 | . 1 . Fabricator Hacks . | . . . Repair Station Hacks 2 | . 2 . Scan Component 1 | . 1 . Repair 1 | . 1 . Recycling Unit Hacks 4 | . 4 . Process 1 | . 1 . Report Inventory 1 | . 1 . Retrieve Matter 2 | . 2 . Scanalyzer . | . . . Garrison Access Hacks . | . . . Unauthorized Hacks . | . . . Terminals . | . . . Fabricators . | . . . Repair Stations . | . . . Recycling Units . | . . . Scanalyzers . | . . . Garrison Access . | . . . Data Cores Recovered . | . . . Used . | . . . Hacking Detections 6 | . 6 . Full Trace Events 1 | . 1 . Feedback Events . | . . . Feedback Blocked . | . . . Robot Schematics Acquired . | . . . Robots Built . | . . . Matter . | . . . Time . | . . . Total Robot Build Rating . | . . . Part Schematics Acquired . | . . . Parts Built . | . . . Matter . | . . . Time . | . . . Total Part Build Rating . | . . . Parts Repaired 1 | . 1 . Time 32 | . 32 . Parts Recycled . | . . . Recycled Matter 18 | . 18 . Retrieved Matter 18 | . 18 . Retrieved Components . | . . . Parts Scanalyzed . | . . . Part Schematics Acquired . | . . . Parts Damaged . | . . . Bothacking | -11 -10 -10 ------------ Run | Scr Mat Min Used RIF Installer . | . . . Robots Hacked . | . . . Non-combat . | . . . Combat . | . . . Robot Hacks Applied . | . . . Relay Couplers Released . | . . . Robots Rewired . | . . . Allies Hacked . | . . . Hacks Repelled . | . . . Allies | -11 -10 -10 -------- Run | Scr Mat Min Total Allies 1 | . . 1 Largest Group 1 | . . 1 Highest-Rated Group 31 | . . 31 Highest-Rated Ally 31 | . . 31 Total Orders . | . . . Ally Attacks 8 | . . 8 Total Damage 127 | . . 127 Kills 3 | . . 3 Allies Corrupted . | . . . Allies Melted . | . . . Intel | -11 -10 -10 ------- Run | Scr Mat Min Robot Analysis Total . | . . . Derelict Logs Recovered 2 | . . 2 Drone Launches . | . . . Drone Recoveries . | . . . Exploration | -11 -10 -10 ------------- Run | Scr Mat Min Turns Passed 2605 | 172 1909 524 Spaces Moved 1985 | 96 1492 397 Core 10 | 10 . . Treads . | . . . Legs . | . . . Wheels 1975 | 86 1492 397 Hover . | . . . Flight . | . . . Fastest Speed 50 | 50 90 100 Average Speed 97 | 91 97 100 Slowest Speed 100 | 100 100 100 Overloaded Moves . | . . . Propulsion Burnouts . | . . . Robots Hopped . | . . . Cave-ins Triggered 1 | . 1 . Exploration Rate (%) 60 | 5 100 75 Regions Visited 2 Branch Regions 1 Pre-discovered Areas 1 | . . 1 Known Exits Taken . | . . . Unknown Exits Taken 2 | 1 1 . Scrap Searched 1 | . . 1 Spaces Dug 17 | . 17 . Terrain Destroyed 20 | . 20 . Melee 8 | . 8 . Projectile 12 | . 12 . AOE . | . . . Actions | -11 -10 -10 --------- Run | Scr Mat Min Total 2302 | 137 1693 472 Wait 53 | . 19 34 Move 1982 | 95 1490 397 Hop . | . . . Pick Up 28 | 12 14 2 Fast Attach 3 | . 2 1 Attach 13 | 7 6 . Detach 1 | . 1 . Swap 9 | 1 7 1 Drop 13 | 1 8 4 Fire 188 | 21 134 33 Melee 11 | . 11 . Ram . | . . . Kick . | . . . Crush . | . . . Escape Stasis 1 | . 1 . Rewire . | . . . Trap . | . . . Miscellaneous . | . . . Route ------- -11/Scrapyard -10/Materials (discovered 5 exits: [*Mat x3] / *Min x2) -10/Mines (discovered 2 exits: [*Mat x2]) History --------- Turn | Location | Event 52 | -11/Scrapyard | Discovered new exit (range 16) 173 | -11/Scrapyard | Entered Materials 307 | -10/Materials | Build established: Mutant 468 | -10/Materials | Discovered new exit (range 10) 542 | -10/Materials | Core integrity fell below 50% 551 | -10/Materials | Discovered new exit (range 16) 572 | -10/Materials | Lost 4 parts (1n1u2w) 662 | -10/Materials | Discovered new exit (range 15) 1192 | -10/Materials | Discovered new exit (range 16) 1450 | -10/Materials | Discovered new exit (range 9) 1500 | -10/Materials | Repaired Autogun? 1721 | -10/Materials | Crushed by falling debris 1722 | -10/Materials | Core integrity fell below 20% 2082 | -10/Materials | Entered Mines 2108 | -10/Mines | Learned location of Zion (-7) 2145 | -10/Mines | Received a Rocket Launcher from a helpful Derelict 2183 | -10/Mines | Discovered new exit (range 16) 2238 | -10/Mines | Discovered new exit (range 14) 2247 | -10/Mines | Learned Materials trap positions 2535 | -10/Mines | Received a Mining Laser from a helpful Derelict 2560 | -10/Mines | Assembled infested the area 2606 | -10/Mines | Destroyed by as-45940 with Assembled Rifle Last Messages --------------- Acquired 8 matter. A derelict emerges from the shadows: "What are you doing alone down here?" GE-J27(g): "And why aren't you carrying a mining laser?! Certainly you don't want THEM to uncover you when the ceiling comes crashing down? Here, take my spare." GE-J27(g): "You're apparently new around these parts, I'll cover you." Move into an ally to swap places with them. GE-J27(g): "Mining lasers are a lot more useful than you might think..." Dropped Mining Claw. Acquired Mining Laser. ALERT: Infestation in the mines, dispatching Demolisher response squad. as-35728 destroyed. as-92098 destroyed. as-43036 destroyed. K-01 Serf collects debris. as-70912 destroyed. K-01 Serf collects debris. GE-J27(g) destroyed. K-01 Serf collects debris. U-05 Engineer destroyed. Map ----- +----------------------------------------------------+ | ????????????# #?????????#### #????????????## | | ????????????# #????????????#*#?????????????# !!= | | ????????????# #####????????# #?????????????##!=## | | ????????????# #????????# #??????####????##%### | | ????????????##### #????????# #??##### ##????#*#?# | | ????????????????# ####???### #### ###### #?? | | ????????????????# #???# =#?? | | ????????????????#### #####= #?? | | ???????????????????# |%= ### ######?? | | ???????????????????#######= #?## ##??????? | | ?????????????????????????# #??## ###???????? | | ???????????????????####### C#???########?????????# | | ???????????????????# #??????????????###??## | | ???????????? ##### ##????????????## ### | | ????????????????????????# k###??????????# | | ????????????????????????#= = ##?????????# | | ????????????????????????# %=% #?????????# | | ???????????????????????##|= = #?????????# | | ??????????????????????## #?????????## = | | ?????????????????????## *! ##??????????##! ! | | ?????????????????????# =%= #????????????# | | | ????????????????????## ! #????????????# | | ????????????????????# #????????????## | | ????????????????????# ##?????????????## | | ????????????????????## ##???????????????# | | ?????????????????????### @ ##????????????????## | | ???????????????????????##aa #??????????????????## | | ??????????????????#######aa##???????????????????# | | ??????????????????# %%%a%*#####???????????????## | | ??????????????????# #####[ ## ##??????????????# | | ????????????????? ????# #??????????????# | | ????????????????# #????## / #??????????????# | | ????????????????# ?????# ##??????????????## | | ????????????????#??????# ##????????????????## | | ???????????????????????# ##??????????????????# | | ???????????????????????## #???????????????????? | | ????????????????????????## ##???????????????????? | | ?????????????????????????####????????????????????? | | ?????????????????????????????????????????????????? | | ?????????????????????????????????????????????????? | | ?????????????????????????????????????????????????? | | ?????????????????????????????????????????????????? | | ?????????????????????????????????????????????????# | | ?????????????????????????????????????????????????? | | ?????????????????????????????????????????????????? | | ?????????????????????????????????????????????????? | | ?????????????????????????????????????????????????? | | ?????????????????????????????????????????????????? | | ?????????????????????????????????????????????????? | | ?????????????????????????????????????????????????? | +----------------------------------------------------+ Best States ------------- Heat Dissipation 25 Energy Generation 10 Energy Capacity 250 Matter Stores 300 Matter Capacity 300 Sight Range 16 Terrain Scan Density 10 Evasion (%) 50 Offensive Hacking 10 Item Schematics ----------------- None Robot Schematics ------------------ None Fabricated ------------ Nothing Alien Tech Used ----------------- None Achievements -------------- Part-time Excavator Use The Force Challenges ------------ None Game ------ Seed ReinforcedDerelictCompressor Manual? 0 Play Time 00:38:28 Cumulative 6.8 hours Start 2020.09.07 @ 08:54:04 End 2020.09.07 @ 09:31:38 Sessions 1 Manual Loads 0 Difficulty Rogue Special Mode None Game No. 7 Rogue 7 Adventurer 0 Explorer 0 Win Type - Total 0 Types 0/0/0/0/0/0/0 Lore% 2 Gallery% 6 Achievement% 7 Wizard Run 0 Options --------- ASCII 0 Keyboard 0 Movement Numpad Keybinds 0 Fullscreen 1 Font 24/Terminus Map View 76x50 Tactical HUD 0 Map Filters NONE Filters NONE Steam 1 RUN: 1786e47b-b978-4526-a3d9-42b4605813fb